fUST/lending_fUST_20250210
["ID","MTS","AMOUNT","RATE_DAILY","PERIOD"]
[352521477,1739148645838,-2912.9,0.00013972,2]
[352521479,1739148645849,-902.07,0.00013972,2]
[352521481,1739148645859,-946.61,0.00013972,2]
[352521482,1739148645870,-3158.07,0.00013972,2]
[352521483,1739148645880,-793.32,0.00013972,2]
[352521484,1739148645891,-853.4,0.00013972,2]
[352521485,1739148645900,-668.41,0.00013972,2]
[352521486,1739148645911,-1437.1,0.00013972,2]
[352521487,1739148645920,-3064.12,0.00013972,2]
[352521488,1739148645929,-406.0,0.00014,4]
[352521489,1739148645939,-3270.76,0.00014,2]
[352521490,1739148645949,-473.487,0.00014053,2]
[352521491,1739148645959,-4499.4637,0.00014109,2]
[352521492,1739148645970,-2912.97,0.00014109,2]
[352521493,1739148645980,-902.08,0.00014109,2]
[352521494,1739148645991,-946.80276072,0.00014109,2]
[352521495,1739148646000,-3158.1288652,0.00014109,2]
[352521496,1739148646010,-793.5215528,0.00014109,2]
[352521497,1739148646020,-853.58619201,0.00014109,2]
[352521498,1739148646030,-668.49735836,0.00014109,2]
[352521499,1739148646040,-1437.22417278,0.00014109,2]
[352521500,1739148646050,-3064.25959731,0.00014109,2]
[352521501,1739148646061,-3556.66,0.00014427,2]
[352521502,1739148646072,-263.334,0.00014562,2]
[352521503,1739148646082,-1975.0,0.00014562,2]
[352521504,1739148646091,-542.52,0.00014562,2]
[352521505,1739148646103,-2296.0,0.00014562,2]
[352521506,1739148646113,-247.0,0.00014562,2]
[352521507,1739148646123,-183.312,0.00014562,2]
[352521508,1739148646132,-2500.0,0.00014787,2]
[352521509,1739148646145,-1246.03857876,0.00014848,5]
[352521510,1739148646155,-151.0,0.00015,2]
[352521511,1739148646166,-800.0,0.00015029,2]
[352521512,1739148646176,-166.0,0.00015068,2]
[352521513,1739148646186,-151.0,0.000153,2]
[352521514,1739148646196,-406.0,0.000155,5]
[352521515,1739148646206,-151.0,0.000156,2]
[352521516,1739148646216,-620.0,0.00015751,2]
[352521517,1739148646226,-1146.0,0.000159,6]
[352521518,1739148646235,-151.0,0.000159,2]
[352521519,1739148646245,-151.0,0.00016,2]
[352521520,1739148646254,-225.44,0.00016,2]
[352521521,1739148646264,-499.0,0.00016164,2]
[352521522,1739148646274,-151.0,0.000162,2]
[352521523,1739148646283,-426.4090738,0.00016356,2]
[352521524,1739148646292,-306.0,0.00016356,2]
[352521525,1739148646301,-153.0,0.00016356,2]
[352521526,1739148646310,-154.5151656,0.00016356,2]
[352521527,1739148646320,-800.0,0.00016399,2]
[352521528,1739148646329,-500.0,0.00016438,2]
[352521529,1739148646339,-500.0,0.00016438,2]
[352521530,1739148646349,-403.44338513,0.00016438,2]
[352521531,1739148646358,-151.0,0.000165,2]
[352521532,1739148646368,-151.0,0.000165,2]
[352521533,1739148646377,-600.0,0.00016532,2]
[352521534,1739148646387,-303.0,0.0001669,2]
[352521535,1739148646397,-151.0,0.000167,2]
[352521536,1739148646407,-272.72621062,0.0001671,2]
[352521537,1739148646418,-1145.0,0.00016789,8]
[352521538,1739148646428,-13266.52937459,0.00016882,2]
[352521539,1739148646437,-500.0,0.00016986,3]
[352521540,1739148646446,-2000.0,0.00017,2]
[352521541,1739148646456,-406.0,0.00017,6]
[352521542,1739148646465,-4961.23575772,0.00017,2]
[352521543,1739148646474,-22605.86033991,0.00017003,2]
[352521544,1739148646483,-161.5729032,0.00017041,2]
[352521545,1739148646492,-165.24734546,0.0001705,2]
[352521546,1739148646501,-165.24734546,0.0001705,2]
[352521547,1739148646511,-165.24,0.0001705,2]
[352521548,1739148646520,-165.24734546,0.0001705,2]
[352521549,1739148646529,-165.24734546,0.0001705,2]
[352521550,1739148646538,-165.24734546,0.0001705,2]
[352521551,1739148646547,-165.24734546,0.0001705,2]
[352521552,1739148646557,-165.24734546,0.0001705,2]
[352521553,1739148646566,-165.24734546,0.0001705,2]
[352521554,1739148646575,-165.24,0.0001705,2]
[352521555,1739148646584,-10356.99122053,0.0001705,2]
[352521556,1739148646594,-500.0,0.00017059,2]
[352521557,1739148646603,-201.13535798,0.00017059,2]
[352521558,1739148646612,-500.0,0.00017059,2]
[352521559,1739148646620,-150.23,0.00017059,2]
[352521560,1739148646629,-150.23,0.00017059,2]
[352521561,1739148646638,-934.097946,0.00017123,2]
[352521562,1739148646648,-151.0,0.00017138,2]
[352521563,1739148646657,-151.0,0.00017138,2]
[352521564,1739148646666,-151.0,0.00017138,2]
[352521565,1739148646675,-151.0,0.00017138,2]
[352521566,1739148646684,-242.824916,0.00017138,2]
[352521567,1739148646693,-151.0,0.00017141,2]
[352521568,1739148646704,-151.0,0.00017141,2]
[352521569,1739148646718,-151.0,0.00017141,2]
[352521570,1739148646727,-151.0,0.00017141,2]
[352521571,1739148646736,-151.0,0.00017141,2]
[352521572,1739148646745,-151.0,0.00017141,2]
[352521573,1739148646754,-151.0,0.00017141,2]
[352521574,1739148646764,-151.0,0.00017141,2]
[352521575,1739148646774,-7438.69753278,0.00017141,7]
[352521576,1739148646784,-24843.65856573,0.0001715,5]
[352521577,1739148646795,-4494.83447727,0.0001715,5]
[352521578,1739148646804,-277587.12821535,0.0001715,61]
[352521579,1739148646879,-12469.7098653,0.0001715,61]
[352521580,1739148646907,-550.12,0.00012054,2]
[352521581,1739148646918,-2127.2224542,0.0001715,61]
[352521582,1739148646931,-348.80584061,0.0001715,61]
[352521583,1739148646945,-2793.6492193,0.0001715,61]
[352521584,1739148647244,-164.04026546,0.00012191,2]
[352521585,1739148647335,-386.07973454,0.00012191,2]
[352521586,1739148647345,-550.12,0.00012328,2]
[352521587,1739148647355,-550.12,0.00012465,2]
[352521588,1739148647364,-550.12,0.00012602,2]
[352521589,1739148647373,-550.12,0.00012739,2]
[352521590,1739148647383,-550.12,0.00012876,2]
[352521591,1739148647393,-550.12,0.00013013,2]
[352521592,1739148647402,-550.12,0.0001315,2]
[352521593,1739148647412,-550.12,0.00013287,2]
[352521594,1739148647421,-550.12,0.00013424,2]
[352521595,1739148647430,-550.12,0.00013561,2]
[352521596,1739148647439,-550.12,0.00013698,2]
[352521597,1739148647448,-550.12,0.00013835,2]
[352521598,1739148647458,-550.12,0.00013972,2]
[352521599,1739148647468,-550.22208034,0.00014109,2]
[352521600,1739148647478,-479.072,0.00014562,2]
[352521601,1739148647487,-251.79610543,0.0001715,61]
[352521606,1739149544742,1691.76335269,8.003e-05,2]
[352521607,1739149544774,2814.71664731,8.003e-05,2]
[352521608,1739149553103,-876.3,0.0001,2]
[352521609,1739149553125,-352.56261457,0.00010685,2]
[352521610,1739149629091,-47.43738543,0.00010685,2]
[352521611,1739149629112,-125.40173791,0.00010951,2]
[352521612,1739149639089,-25.59826209,0.00010951,2]
[352521613,1739149639111,-300.0,0.00010956,2]
[352521614,1739149639135,-500.0,0.00010957,2]
[352521615,1739149639159,-320.98171028,0.00010957,2]
[352521616,1739149643178,-179.01828972,0.00010957,2]
[352521617,1739149643200,-500.0,0.00010957,2]
[352521618,1739149643223,-377.0,0.00010957,2]
[352521619,1739149643247,-343.52052494,0.00010957,2]
[352521620,1739149643271,-500.0,0.00010957,2]
[352521621,1739149643293,-500.0,0.00010957,2]
[352521622,1739149643313,-211.83234199,0.00010957,2]
[352521623,1739149643334,-500.0,0.00010958,2]
[352521624,1739149643354,-500.0,0.00010958,2]
[352521625,1739149643374,-500.0,0.00010958,2]
[352521626,1739149643395,-500.0,0.00010958,2]
[352521627,1739149643418,-500.0,0.00010958,2]
[352521628,1739149643438,-500.0,0.00010958,2]
[352521629,1739149643459,-500.0,0.00010958,2]
[352521630,1739149643480,-379.87248343,0.00010958,2]
[352521631,1739149751102,-179.87987773,0.00010858,2]
[352521632,1739149751125,-176.9318667,0.00010957,2]
[352521659,1739149832536,-438.29069101,0.00010758,2]
[352521660,1739149832550,-300.0,0.00010957,2]
[352521661,1739149832564,-224.08352758,0.00010958,2]
[352521662,1739149832579,-374.15634894,0.00010958,2]
[352521663,1739149832603,-125.84365106,0.00010958,2]
[352521664,1739149832614,-284.93659093,0.00010958,2]
[352521665,1739149832625,-500.0,0.00010958,2]
[352521666,1739149832637,-500.0,0.00010958,2]
[352521667,1739149832652,-500.0,0.00010958,2]
[352521668,1739149832663,-500.0,0.00010958,2]
[352521669,1739149832677,-519.75081571,0.00010958,2]
[352521670,1739149832689,-500.0,0.00010958,2]
[352521671,1739149832700,-500.0,0.00010958,2]
[352521672,1739149832712,-500.0,0.00010958,2]
[352521673,1739149832723,-340.1928242,0.00010958,2]
[352521674,1739149832736,-500.0,0.00010958,2]
[352521675,1739149832753,-500.0,0.00010958,2]
[352521676,1739149832765,-500.0,0.00010958,2]
[352521677,1739149832777,-500.0,0.00010958,2]
[352521678,1739149832790,-500.0,0.00010958,2]
[352521679,1739149832804,-500.0,0.00010958,2]
[352521680,1739149832816,-500.0,0.00010958,2]
[352521681,1739149832829,-500.0,0.00010958,2]
[352521682,1739149832840,-500.0,0.00010958,2]
[352521683,1739149832852,-500.0,0.00010958,2]
[352521684,1739149832864,-500.0,0.00010958,2]
[352521685,1739149832876,-500.0,0.00010958,2]
[352521686,1739149832889,-500.0,0.00010958,2]
[352521687,1739149832905,-500.0,0.00010958,2]
[352521688,1739149832916,-500.0,0.00010958,2]
[352521689,1739149832929,-500.0,0.00010958,2]
[352521690,1739149832941,-500.0,0.00010958,2]
[352521691,1739149832953,-500.0,0.00010958,2]
[352521692,1739149832966,-500.90461884,0.00010958,2]
[352521693,1739149832978,-500.0,0.00010958,2]
[352521694,1739149832990,-500.0,0.00010958,2]
[352521695,1739149833002,-500.0,0.00010958,2]
[352521696,1739149833014,-500.0,0.00010958,2]
[352521697,1739149833026,-504.83571311,0.00010958,2]
[352521698,1739149833039,-500.0,0.00010958,2]
[352521699,1739149833051,-500.0,0.00010958,2]
[352521700,1739149833064,-500.0,0.00010958,2]
[352521701,1739149833076,-500.0,0.00010958,2]
[352521702,1739149833088,-500.0,0.00010958,2]
[352521703,1739149833100,-500.0,0.00010958,2]
[352521704,1739149833111,-529.43,0.00010958,2]
[352521705,1739149833124,-500.0,0.00010958,2]
[352521706,1739149833137,-500.0,0.00010958,2]
[352521707,1739149833150,-500.0,0.00010958,2]
[352521708,1739149833163,-500.0,0.00010958,2]
[352521709,1739149833176,-500.0,0.00010958,2]
[352521710,1739149833191,-500.0,0.00010958,2]
[352521711,1739149833203,-601.61,0.00010958,2]
[352521712,1739149833216,-500.0,0.00010958,2]
[352521713,1739149833229,-500.0,0.00010958,2]
[352521714,1739149833242,-500.0,0.00010958,2]
[352521715,1739149833255,-500.0,0.00010958,2]
[352521716,1739149833268,-500.0,0.00010958,2]
[352521717,1739149833281,-500.0,0.00010958,2]
[352521718,1739149833293,-500.0,0.00010958,2]
[352521719,1739149833305,-500.0,0.00010958,2]
[352521720,1739149833319,-500.0,0.00010958,2]
[352521721,1739149833339,-500.0,0.00010958,2]
[352521722,1739149833352,-500.0,0.00010958,2]
[352521723,1739149833366,-500.0,0.00010958,2]
[352521724,1739149833567,-501.62133054,0.00010958,2]
[352521725,1739149833585,-500.0,0.00010958,2]
[352521726,1739149833596,-500.0,0.00010958,2]
[352521727,1739149833608,-500.0,0.00010958,2]
[352521728,1739149833618,-376.83327941,0.00010958,2]
[352521729,1739149833629,-500.0,0.00010958,2]
[352521730,1739149833639,-500.0,0.00010958,2]
[352521731,1739149833649,-500.0,0.00010958,2]
[352521732,1739149833660,-500.0,0.00010958,2]
[352521733,1739149833670,-500.0,0.00010958,2]
[352521734,1739149833681,-500.0,0.00010958,2]
[352521735,1739149833691,-500.0,0.00010958,2]
[352521736,1739149833701,-501.03179903,0.00010958,2]
[352521737,1739149833715,-500.0,0.00010958,2]
[352521738,1739149833732,-500.0,0.00010958,2]
[352521739,1739149833742,-500.0,0.00010958,2]
[352521740,1739149833752,-500.0,0.00010958,2]
[352521741,1739149833762,-500.0,0.00010958,2]
[352521742,1739149833772,-500.0,0.00010958,2]
[352521743,1739149833782,-500.0,0.00010958,2]
[352521744,1739149833791,-500.0,0.00010958,2]
[352521745,1739149833804,-500.0,0.00010958,2]
[352521746,1739149833814,-500.0,0.00010958,2]
[352521747,1739149833824,-500.0,0.00010958,2]
[352521748,1739149833835,-500.0,0.00010958,2]
[352521749,1739149833845,-500.0,0.00010958,2]
[352521750,1739149833855,-500.0,0.00010958,2]
[352521751,1739149833865,-500.0,0.00010958,2]
[352521752,1739149833875,-500.0,0.00010958,2]
[352521753,1739149833885,-500.0,0.00010958,2]
[352521754,1739149833896,-500.0,0.00010958,2]
[352521755,1739149833908,-500.0,0.00010958,2]
[352521756,1739149833918,-500.0,0.00010958,2]
[352521757,1739149833930,-500.0,0.00010958,2]
[352521758,1739149833941,-500.0,0.00010958,2]
[352521759,1739149833951,-500.0,0.00010958,2]
[352521760,1739149833964,-500.0,0.00010958,2]
[352521761,1739149833975,-500.0,0.00010958,2]
[352521762,1739149833986,-570.00038302,0.00010958,2]
[352521763,1739149833997,-500.0,0.00010958,2]
[352521764,1739149834007,-500.0,0.00010958,2]
[352521765,1739149834019,-500.0,0.00010958,2]
[352521766,1739149834030,-500.0,0.00010958,2]
[352521767,1739149834040,-500.0,0.00010958,2]
[352521768,1739149834051,-500.0,0.00010958,2]
[352521769,1739149834062,-500.0,0.00010958,2]
[352521770,1739149834073,-500.0,0.00010958,2]
[352521771,1739149834083,-500.0,0.00010958,2]
[352521772,1739149834094,-500.0,0.00010958,2]
[352521773,1739149834104,-1004.5,0.00010958,2]
[352521774,1739149834114,-500.0,0.00010958,2]
[352521775,1739149834125,-500.0,0.00010958,2]
[352521776,1739149834135,-500.0,0.00010958,2]
[352521777,1739149834145,-500.0,0.00010958,2]
[352521778,1739149834156,-500.0,0.00010958,2]
[352521779,1739149834167,-500.0,0.00010958,2]
[352521780,1739149834177,-500.0,0.00010958,2]
[352521781,1739149834187,-501.21233733,0.00010958,2]
[352521782,1739149834198,-500.0,0.00010958,2]
[352521783,1739149834209,-500.0,0.00010958,2]
[352521784,1739149834219,-500.0,0.00010958,2]
[352521785,1739149834230,-500.0,0.00010958,2]
[352521786,1739149834240,-500.0,0.00010958,2]
[352521787,1739149834251,-500.0,0.00010958,2]
[352521788,1739149834261,-500.0,0.00010958,2]
[352521789,1739149834272,-500.0,0.00010958,2]
[352521790,1739149834282,-500.0,0.00010958,2]
[352521791,1739149834292,-500.0,0.00010958,2]
[352521792,1739149834302,-500.0,0.00010958,2]
[352521793,1739149834312,-500.0,0.00010958,2]
[352521794,1739149834323,-500.0,0.00010958,2]
[352521795,1739149834333,-232.44990168,0.00010958,2]
[352521796,1739149834343,-500.0,0.00010958,2]
[352521797,1739149834354,-645.34,0.00010958,2]
[352521798,1739149834364,-500.0,0.00010958,2]
[352521799,1739149834374,-500.0,0.00010958,2]
[352521800,1739149834384,-253.38876516,0.00010958,2]
[352521805,1739149838222,-246.61123484,0.00010958,2]
[352521806,1739149838232,-500.0,0.00010958,2]
[352521807,1739149838242,-500.95828207,0.00010958,2]
[352521808,1739149838252,-500.0,0.00010958,2]
[352521809,1739149838262,-500.0,0.00010958,2]
[352521810,1739149838272,-500.0,0.00010958,2]
[352521811,1739149838283,-520.48775068,0.00010958,2]
[352521812,1739149838292,-500.0,0.00010958,2]
[352521813,1739149838303,-288.79659129,0.00010958,2]
[352521814,1739149838313,-500.0,0.00010958,2]
[352521815,1739149838323,-247.41469063,0.00010958,2]
[352521816,1739149838334,-206.95330172,0.00010958,2]
[352521817,1739149838344,-500.0,0.00010958,2]
[352521818,1739149838354,-500.0,0.00010958,2]
[352521819,1739149838363,-500.0,0.00010958,2]
[352521820,1739149838373,-500.0,0.00010958,2]
[352521821,1739149838383,-500.0,0.00010958,2]
[352521822,1739149838393,-654.88,0.00010958,2]
[352521823,1739149838403,-500.0,0.00010958,2]
[352521824,1739149838412,-414.51564704,0.00010958,2]
[352521825,1739149838422,-500.0,0.00010958,2]
[352521826,1739149838431,-95.94684723,0.00010958,2]
[352521827,1739149838518,-404.05315277,0.00010958,2]
[352521828,1739149838528,-500.0,0.00010958,2]
[352521829,1739149838537,-111.65860616,0.00010958,2]
[352521830,1739149838609,-388.34139384,0.00010958,2]
[352521831,1739149838619,-500.0,0.00010958,2]
[352521832,1739149838629,-500.0,0.00010958,2]
[352521833,1739149838639,-500.0,0.00010958,2]
[352521834,1739149838648,-500.0,0.00010958,2]
[352521835,1739149838659,-500.0,0.00010958,2]
[352521836,1739149838669,-534.23,0.00010958,2]
[352521837,1739149838678,-500.0,0.00010958,2]
[352521838,1739149838688,-500.0,0.00010958,2]
[352521839,1739149838697,-500.0,0.00010958,2]
[352521840,1739149838707,-4640.51,0.00010958,2]
[352521841,1739149838716,-500.0,0.00010958,2]
[352521842,1739149838725,-500.0,0.00010958,2]
[352521843,1739149838734,-1642.26,0.00010958,2]
[352521844,1739149838743,-500.0,0.00010958,2]
[352521845,1739149838753,-413.77714815,0.00010958,2]
[352521846,1739149838762,-500.0,0.00010958,2]
[352521847,1739149838771,-500.0,0.00010958,2]
[352521848,1739149838780,-500.0,0.00010958,2]
[352521849,1739149838789,-500.0,0.00010958,2]
[352521850,1739149838799,-500.0,0.00010958,2]
[352521851,1739149838808,-1895.81,0.00010958,2]
[352521852,1739149838817,-500.0,0.00010958,2]
[352521853,1739149838826,-500.0,0.00010958,2]
[352521854,1739149838835,-500.0,0.00010958,2]
[352521855,1739149838844,-500.0,0.00010958,2]
[352521856,1739149838854,-500.0,0.00010958,2]
[352521857,1739149838863,-525.19795782,0.00010958,2]
[352521858,1739149838872,-500.0,0.00010958,2]
[352521859,1739149838882,-500.0,0.00010958,2]
[352521860,1739149838891,-500.0,0.00010958,2]
[352521861,1739149838901,-500.0,0.00010958,2]
[352521862,1739149838910,-1750.12,0.00010958,2]
[352521863,1739149838920,-500.0,0.00010958,2]
[352521864,1739149838929,-500.0,0.00010958,2]
[352521865,1739149838938,-500.0,0.00010958,2]
[352521866,1739149838948,-506.80187619,0.00010958,2]
[352521867,1739149838957,-10660.32,0.00010958,2]
[352521868,1739149838967,-500.0,0.00010958,2]
[352521869,1739149838976,-947.43,0.00010958,2]
[352521870,1739149838985,-500.0,0.00010958,2]
[352521871,1739149838995,-292.89185279,0.00010958,2]
[352521872,1739149839004,-500.0,0.00010958,2]
[352521873,1739149839014,-625.62,0.00010958,2]
[352521874,1739149839023,-573.86,0.00010958,2]
[352521875,1739149839032,-500.0,0.00010958,2]
[352521876,1739149839042,-500.0,0.00010958,2]
[352521877,1739149839052,-500.0,0.00010958,2]
[352521878,1739149839062,-718.34,0.00010958,2]
[352521879,1739149839071,-500.0,0.00010958,2]
[352521880,1739149839081,-500.0,0.00010958,2]
[352521881,1739149839090,-500.0,0.00010958,2]
[352521882,1739149839100,-500.0,0.00010958,2]
[352521883,1739149839110,-500.0,0.00010958,2]
[352521884,1739149839120,-500.0,0.00010958,2]
[352521885,1739149839129,-500.0,0.00010958,2]
[352521886,1739149839139,-500.0,0.00010958,2]
[352521887,1739149839149,-500.0,0.00010958,2]
[352521888,1739149839159,-776.94,0.00010958,2]
[352521889,1739149839169,-368.42012383,0.00010958,2]
[352521890,1739149839178,-500.0,0.00010958,2]
[352521891,1739149839188,-500.0,0.00010958,2]
[352521892,1739149839198,-500.0,0.00010958,2]
[352521893,1739149839210,-500.0,0.00010958,2]
[352521894,1739149839229,-500.0,0.00010958,2]
[352521895,1739149839239,-6782.8,0.00010958,2]
[352521896,1739149839248,-500.0,0.00010958,2]
[352521897,1739149839258,-500.0,0.00010958,2]
[352521898,1739149839268,-906.17,0.00010958,2]
[352521899,1739149839277,-500.0,0.00010958,2]
[352521900,1739149839288,-500.0,0.00010958,2]
[352521901,1739149839298,-500.0,0.00010958,2]
[352521902,1739149839307,-500.0,0.00010958,2]
[352521903,1739149839316,-500.0,0.00010958,2]
[352521904,1739149839326,-500.0,0.00010958,2]
[352521905,1739149839335,-500.0,0.00010958,2]
[352521906,1739149839345,-1472.19,0.00010958,2]
[352521907,1739149839356,-500.0,0.00010958,2]
[352521908,1739149839371,-500.0,0.00010958,2]
[352521909,1739149839380,-500.0,0.00010958,2]
[352521910,1739149839390,-500.0,0.00010958,2]
[352521911,1739149839399,-500.0,0.00010958,2]
[352521912,1739149839411,-1061.65,0.00010958,2]
[352521913,1739149839421,-500.0,0.00010958,2]
[352521914,1739149839430,-500.0,0.00010958,2]
[352521915,1739149839440,-500.0,0.00010958,2]
[352521916,1739149839449,-500.0,0.00010958,2]
[352521917,1739149839458,-500.0,0.00010958,2]
[352521918,1739149839468,-500.0,0.00010958,2]
[352521919,1739149839477,-516.62,0.00010958,2]
[352521920,1739149839489,-500.0,0.00010958,2]
[352521921,1739149839498,-500.0,0.00010958,2]
[352521922,1739149839507,-500.0,0.00010958,2]
[352521923,1739149839518,-606.67,0.00010958,2]
[352521924,1739149839527,-1695.74,0.00010958,2]
[352521925,1739149839536,-500.0,0.00010958,2]
[352521926,1739149839546,-500.0,0.00010958,2]
[352521927,1739149839555,-500.0,0.00010958,2]
[352521928,1739149839568,-500.0,0.00010958,2]
[352521929,1739149839579,-500.0,0.00010958,2]
[352521930,1739149839589,-500.0,0.00010958,2]
[352521931,1739149839599,-244.09744737,0.00010958,2]
[352521932,1739149839608,-544.55776115,0.00010958,2]
[352521933,1739149839620,-500.0,0.00010958,2]
[352521934,1739149839629,-500.0,0.00010958,2]
[352521935,1739149839639,-500.0,0.00010958,2]
[352521936,1739149839648,-2296.52,0.00010958,2]
[352521937,1739149839660,-500.0,0.00010958,2]
[352521938,1739149839669,-617.59084311,0.00010958,2]
[352521939,1739149839679,-500.0,0.00010958,2]
[352521940,1739149839688,-500.0,0.00010958,2]
[352521941,1739149839698,-6096.23,0.00010958,2]
[352521942,1739149839707,-500.0,0.00011095,2]
[352521943,1739149839821,-500.0,0.00011095,2]
[352521944,1739149839831,-500.0,0.00011095,2]
[352521945,1739149839840,-500.0,0.00011095,2]
[352521946,1739149839850,-500.0,0.00011095,2]
[352521947,1739149839859,-500.0,0.00011095,2]
[352521948,1739149839867,-500.0,0.00011095,2]
[352521949,1739149839876,-500.0,0.00011095,2]
[352521950,1739149839885,-500.0,0.00011095,2]
[352521951,1739149839895,-529.43,0.00011095,2]
[352521952,1739149839905,-500.0,0.00011095,2]
[352521953,1739149839915,-500.0,0.00011095,2]
[352521954,1739149839925,-598.29406905,0.00011095,2]
[352521955,1739149839935,-500.0,0.00011095,2]
[352521956,1739149839945,-500.0,0.00011095,2]
[352521957,1739149839955,-601.61,0.00011095,2]
[352521958,1739149839964,-500.0,0.00011095,2]
[352521959,1739149839973,-500.0,0.00011095,2]
[352521960,1739149839984,-500.0,0.00011095,2]
[352521961,1739149839993,-151.78966454,0.00011095,2]
[352521962,1739149840003,-500.0,0.00011095,2]
[352521963,1739149840012,-500.0,0.00011095,2]
[352521964,1739149840022,-500.0,0.00011095,2]
[352521965,1739149840031,-500.0,0.00011095,2]
[352521966,1739149840040,-500.0,0.00011095,2]
[352521967,1739149840050,-592.08,0.00011095,2]
[352521968,1739149840060,-500.0,0.00011095,2]
[352521969,1739149840070,-500.0,0.00011095,2]
[352521970,1739149840079,-500.0,0.00011095,2]
[352521971,1739149840089,-500.0,0.00011095,2]
[352521972,1739149840098,-500.0,0.00011095,2]
[352521973,1739149840108,-500.0,0.00011095,2]
[352521974,1739149840122,-500.0,0.00011095,2]
[352521975,1739149840132,-500.0,0.00011095,2]
[352521976,1739149840142,-500.0,0.00011095,2]
[352521977,1739149840151,-500.0,0.00011095,2]
[352521978,1739149840161,-500.0,0.00011095,2]
[352521979,1739149840170,-500.0,0.00011095,2]
[352521980,1739149840180,-500.0,0.00011095,2]
[352521981,1739149840189,-1004.5,0.00011095,2]
[352521982,1739149840200,-500.0,0.00011095,2]
[352521983,1739149840209,-500.0,0.00011095,2]
[352521984,1739149840219,-500.0,0.00011095,2]
[352521985,1739149840228,-500.0,0.00011095,2]
[352521986,1739149840237,-500.0,0.00011095,2]
[352521987,1739149840246,-654.88,0.00011095,2]
[352521988,1739149840255,-500.0,0.00011095,2]
[352521989,1739149840265,-542.95,0.00011095,2]
[352521990,1739149840274,-500.0,0.00011095,2]
[352521991,1739149840284,-500.0,0.00011095,2]
[352521992,1739149840293,-4640.51,0.00011095,2]
[352521993,1739149840302,-1642.26,0.00011095,2]
[352521994,1739149840311,-500.0,0.00011095,2]
[352521995,1739149840321,-1895.81,0.00011095,2]
[352521996,1739149840330,-500.0,0.00011095,2]
[352521997,1739149840339,-500.0,0.00011095,2]
[352521998,1739149840348,-500.0,0.00011095,2]
[352521999,1739149840358,-500.0,0.00011095,2]
[352522000,1739149840367,-500.0,0.00011095,2]
[352522001,1739149840377,-1750.12,0.00011095,2]
[352522002,1739149840386,-10660.32,0.00011095,2]
[352522003,1739149840396,-500.0,0.00011095,2]
[352522004,1739149840407,-947.43,0.00011095,2]
[352522005,1739149840416,-500.0,0.00011095,2]
[352522006,1739149840427,-625.62,0.00011095,2]
[352522007,1739149840437,-573.86,0.00011095,2]
[352522008,1739149840446,-500.0,0.00011095,2]
[352522009,1739149840455,-718.34,0.00011095,2]
[352522010,1739149840465,-500.0,0.00011095,2]
[352522011,1739149840477,-500.0,0.00011095,2]
[352522012,1739149840487,-500.0,0.00011095,2]